[Event "FIDE World Rapid-ch Open 2018"]
[White "Gurvich, Vitaly"]
[Black "Makarov, Marat"]
[Site "St. Petersburg"]
[Round "9.94"]
[Annotator "ChessBase"]
[Result "0-1"]
[Date "2018.12.27"]
[WhiteElo "2270"]
[BlackElo "2505"]
[PlyCount "107"]
[TimeControl "900+10"]

1. d4 {[%emt 0:0:0]} Nf6 {[%emt 0:0:10]} 2. c4 {[%emt 0:0:0]} e6 {[%emt 0:0:0]} 3. Nf3 {[%emt 0:0:0]} Bb4+ {[%emt 0:0:8]} 4. Bd2 {[%emt 0:0:0]} a5 {[%emt 0:0:4]} 5. g3 {[%emt 0:0:0]} b6 {[%emt 0:0:3]} 6. Bg2 Bb7 7. Nc3 {[%emt 0:0:5]} Bxc3 {[%emt 0:0:9]} 8. Bxc3 {[%emt 0:0:2]} Ne4 {[%emt 0:0:2]
} 9. Rc1 {[%emt 0:0:3]} 0-0 {[%emt 0:0:5]} 10. 0-0 {[%emt 0:0:0]} d6 {[%emt 0:0:59]} 11. b3 {[%emt 0:0:45]} Nxc3 {[%emt 0:0:6]} 12. Rxc3 {[%emt 0:0:2]} Nd7 {[%emt 0:0:9]} 13. Rc1 {[%emt 0:1:1]} Be4 {[%emt 0:0:15]
} 14. Nd2 {[%emt 0:0:45]} Bxg2 {[%emt 0:0:9]} 15. Kxg2 {[%emt 0:0:2]
} f5 {[%emt 0:0:27]} 16. e3 {[%emt 0:2:21]} e5 {[%emt 0:0:44]} 17. Qf3 {[%emt 0:1:9]} e4 {[%emt 0:1:14]} 18. Qe2 {[%emt 0:0:2]} c5 {[%emt 0:0:8]
} 19. f3 {[%emt 0:0:26]} Nf6 {[%emt 0:2:43]} 20. fxe4 {[%emt 0:0:0]} fxe4 {[%emt 0:0:2]} 21. d5 {[%emt 0:0:18]} Qe7 {[%emt 0:0:41]} 22. a4 {[%emt 0:0:6]} Qe5 {[%emt 0:0:47]} 23. Nb1 {[%emt 0:0:18]} h5 {[%emt 0:0:0]} 24. Nc3 {[%emt 0:1:3]} Rf7 {[%emt 0:0:22]} 25. Rf2 {[%emt 0:1:8]} Raf8 {[%emt 0:0:4]} 26. Qd2 {[%emt 0:2:15]} Ng4 {[%emt 0:1:29]} 27. Rxf7 {[%emt 0:3:49]
} Rxf7 {[%emt 0:0:2]} 28. Rf1 {[%emt 0:0:4]} Rxf1 {[%emt 0:0:0]} 29. Kxf1 {[%emt 0:0:2]} Qf5+ {[%emt 0:0:2]} 30. Kg1 {[%emt 0:0:11]
} Ne5 {[%emt 0:1:4]} 31. Qc2 {[%emt 0:0:44]} Nf3+ {[%emt 0:0:10]} 32. Kh1 {[%emt 0:0:4]
} Nd2 {[%emt 0:0:33]} 33. Qd1 {[%emt 0:0:21]} Qf2 {[%emt 0:0:0]} 34. Qg1 {[%emt 0:0:16]} Qf3+ {[%emt 0:0:6]} 35. Qg2 {[%emt 0:0:1]} Qxe3 {[%emt 0:0:6]} 36. Ne2 {[%emt 0:0:5]} Qxb3 {[%emt 0:0:15]} 37. Ng1 {[%emt 0:0:25]
} Nf3 {[%emt 0:0:17]} 38. Qh3 {[%emt 0:0:21]} Qb1 {[%emt 0:0:0]} 39. Qe6+ {[%emt 0:0:22]} Kh7 {[%emt 0:0:8]} 40. Qf5+ {[%emt 0:0:23]} Kh6 {[%emt 0:0:7]} 41. Qf4+ {[%emt 0:0:11]} Kg6 {[%emt 0:0:2]} 42. Qe3 {[%emt 0:0:11]
} Qxg1+ {[%emt 0:0:44]} 43. Qxg1 {[%emt 0:0:1]} Nxg1 {[%emt 0:0:0]} 44. Kxg1 {[%emt 0:0:1]} Kf5 {[%emt 0:0:9]} 45. Kf2 {[%emt 0:0:5]} Kg4 {[%emt 0:0:17]} 46. Kg2 {[%emt 0:0:19]} h4 {[%emt 0:0:2]} 47. h3+ {[%emt 0:0:10]
} Kg5 {[%emt 0:0:16]} 48. Kf2 {[%emt 0:0:20]} hxg3+ {[%emt 0:0:0]} 49. Kxg3 {[%emt 0:0:1]} Kf5 {[%emt 0:0:2]} 50. h4 {[%emt 0:0:3]} g6 {[%emt 0:0:3]} 51. Kf2 {[%emt 0:0:8]} Kf4 {[%emt 0:0:2]} 52. Ke2 {[%emt 0:0:3]
} e3 {[%emt 0:0:5]} 53. Ke1 {[%emt 0:0:2]} Ke4 {[%emt 0:0:0]} 54. Ke2 {[%emt 0:0:3]} 0-1

[Event "FIDE World Rapid-ch Open 2018"]
[White "Guimaraes, Diogo Duarte"]
[Black "Hakobyan, Aram"]
[Site "St. Petersburg"]
[Round "9.95"]
[Annotator "ChessBase"]
[Result "1/2-1/2"]
[Date "2018.12.27"]
[WhiteElo "2278"]
[BlackElo "2545"]
[PlyCount "144"]
[TimeControl "900+10"]

1. e4 {[%emt 0:14:4]} Nf6 {[%emt 0:0:0]} 2. e5 {[%emt 0:0:0]} Nd5 {[%emt 0:0:0]
} 3. Nf3 {[%emt 0:0:0]} d6 {[%emt 0:0:0]} 4. d4 {[%emt 0:0:0]} c6 {[%emt 0:0:0]} 5. Be2 {[%emt 0:0:0]} Bf5 {[%emt 0:0:8]} 6. 0-0 {[%emt 0:0:0]
} dxe5 {[%emt 0:0:1]} 7. Nxe5 {[%emt 0:0:0]} Nd7 {[%emt 0:0:0]} 8. Nf3 {[%emt 0:0:0]} e6 {[%emt 0:0:1]} 9. c4 {[%emt 0:0:0]} N5f6 {[%emt 0:0:4]
} 10. Nc3 {[%emt 0:0:0]} Bd6 {[%emt 0:0:1]} 11. h3 {[%emt 0:0:0]} 0-0 {[%emt 0:0:3]} 12. Nh4 {[%emt 0:0:0]} Bg6 {[%emt 0:0:2]} 13. Be3 {[%emt 0:0:0]} Re8 {[%emt 0:0:8]} 14. Re1 {[%emt 0:0:0]} Qc7 {[%emt 0:0:2]
} 15. Nxg6 {[%emt 0:0:0]} hxg6 {[%emt 0:0:2]} 16. Bf3 {[%emt 0:0:0]
} Rad8 {[%emt 0:0:3]} 17. Rc1 {[%emt 0:0:0]} Bh2+ {[%emt 0:0:0]} 18. Kh1 {[%emt 0:0:0]} Bf4 {[%emt 0:0:2]} 19. Qd2 {[%emt 0:0:0]} Bxe3 {[%emt 0:0:8]} 20. Qxe3 {[%emt 0:0:0]} a6 {[%emt 0:0:11]} 21. Ne4 {[%emt 0:0:0]
} Nxe4 {[%emt 0:0:12]} 22. Bxe4 {[%emt 0:0:0]} Nf6 {[%emt 0:0:0]} 23. Bf3 {[%emt 0:0:0]} Rd7 {[%emt 0:0:2]} 24. Red1 {[%emt 0:0:0]} Red8 {[%emt 0:0:1]} 25. Rd2 {[%emt 0:0:0]} e5 {[%emt 0:0:38]} 26. Rcd1 {[%emt 0:0:0]
} exd4 {[%emt 0:0:36]} 27. Rxd4 {[%emt 0:0:0]} Rxd4 {[%emt 0:0:0]} 28. Rxd4 {[%emt 0:0:0]} Re8 {[%emt 0:0:0]} 29. Qd2 {[%emt 0:0:0]} Qe5 {[%emt 0:0:2]} 30. g3 {[%emt 0:0:0]} Qe1+ {[%emt 0:0:20]} 31. Kg2 {[%emt 0:0:0]
} Qxd2 {[%emt 0:0:2]} 32. Rxd2 {[%emt 0:0:0]} Kf8 {[%emt 0:0:0]} 33. b4 {[%emt 0:0:0]} Re5 {[%emt 0:0:17]} 34. Rd8+ {[%emt 0:0:0]} Re8 {[%emt 0:0:1]} 35. Rd2 {[%emt 0:0:0]} Ke7 {[%emt 0:0:43]} 36. b5 {[%emt 0:0:0]
} axb5 {[%emt 0:1:30]} 37. cxb5 {[%emt 0:0:0]} cxb5 {[%emt 0:0:0]} 38. Rb2 {[%emt 0:0:0]} b6 {[%emt 0:0:42]} 39. Rxb5 Rb8 40. a4 {[%emt 0:0:0]
} Nd7 {[%emt 0:0:25]} 41. a5 {[%emt 0:0:0]} bxa5 {[%emt 0:0:0]} 42. Rxa5 {[%emt 0:0:0]} Rb6 {[%emt 0:0:16]} 43. h4 {[%emt 0:0:0]} Kf6 {[%emt 0:0:9]} 44. g4 {[%emt 0:0:0]} Ne5 {[%emt 0:0:53]} 45. Be2 {[%emt 0:0:0]} Rb2 {[%emt 0:0:15]} 46. Kf1 {[%emt 0:0:32]} Rb1+ {[%emt 0:0:1]} 47. Kg2 {[%emt 0:0:1]} Rb2 {[%emt 0:0:1]} 48. Kf1 {[%emt 0:0:1]} Rb4 {[%emt 0:0:9]
} 49. f3 {[%emt 0:0:31]} Ke6 {[%emt 0:0:20]} 50. Kf2 {[%emt 0:0:0]} Rb2 {[%emt 0:0:3]} 51. Ke3 {[%emt 0:0:14]} Rb3+ {[%emt 0:0:4]} 52. Kf2 {[%emt 0:0:8]} Rc3 {[%emt 0:0:15]} 53. Ra6+ {[%emt 0:0:31]} Ke7 {[%emt 0:0:11]
} 54. Ra7+ {[%emt 0:0:12]} Ke6 {[%emt 0:0:10]} 55. Ra6+ {[%emt 0:0:8]
} Rc6 {[%emt 0:0:30]} 56. Bc4+ {[%emt 0:1:18]} Kd6 {[%emt 0:0:0]} 57. Rxc6+ {[%emt 0:0:8]} Kxc6 {[%emt 0:0:1]} 58. Bb3 {[%emt 0:0:26]} Kd6 {[%emt 0:0:18]} 59. Ke3 {[%emt 0:0:12]} f6 {[%emt 0:0:11]} 60. Ke4 {[%emt 0:0:23]
} Ke7 {[%emt 0:0:7]} 61. g5 {[%emt 0:0:19]} Nd7 {[%emt 0:0:0]} 62. Kd5 {[%emt 0:0:55]} Nf8 {[%emt 0:0:19]} 63. Ke4 {[%emt 0:0:35]} Nd7 {[%emt 0:0:26]} 64. Kd5 {[%emt 0:0:3]} Ne5 {[%emt 0:0:3]} 65. Ke4 {[%emt 0:0:2]
} Kd6 {[%emt 0:1:0]} 66. f4 {[%emt 0:0:12]} Nd7 {[%emt 0:0:0]} 67. Bf7 {[%emt 0:0:9]} fxg5 {[%emt 0:0:36]} 68. hxg5 {[%emt 0:0:48]} Nf8 {[%emt 0:0:15]} 69. f5 {[%emt 0:0:37]} gxf5+ {[%emt 0:0:1]} 70. Kxf5 {[%emt 0:0:5]
} Ke7 {[%emt 0:0:0]} 71. Bb3 {[%emt 0:0:22]} Nh7 {[%emt 0:0:0]} 72. Kg6 {[%emt 0:0:5]} Nxg5 {[%emt 0:0:2]} 1/2-1/2

[Event "FIDE World Rapid-ch Open 2018"]
[White "Dubrovin, Robert"]
[Black "Bilguun, Sumiya"]
[Site "St. Petersburg"]
[Round "9.96"]
[Annotator "ChessBase"]
[Result "1/2-1/2"]
[Date "2018.12.27"]
[WhiteElo "2220"]
[BlackElo "2497"]
[PlyCount "58"]
[TimeControl "900+10"]

1. d4 {[%emt 0:5:16]} d5 2. c4 e6 {[%emt 0:0:0]} 3. Nc3 {[%emt 0:0:0]} c6 {[%emt 0:0:0]} 4. Nf3 {[%emt 0:0:2]} dxc4 {[%emt 0:0:0]} 5. e3 {[%emt 0:0:0]} b5 {[%emt 0:0:2]} 6. a4 {[%emt 0:0:2]} Bb4 {[%emt 0:0:1]} 7. Bd2 {[%emt 0:0:1]} a5 {[%emt 0:0:2]} 8. axb5 {[%emt 0:0:0]} Bxc3 {[%emt 0:0:0]} 9. Bxc3 {[%emt 0:0:1]} cxb5 {[%emt 0:0:4]} 10. b3 {[%emt 0:0:0]} Bb7 {[%emt 0:0:2]} 11. bxc4 {[%emt 0:0:1]} b4 12. Bb2 Nf6 {[%emt 0:0:5]} 13. Bd3 {[%emt 0:0:1]} 0-0 {[%emt 0:0:2]} 14. 0-0 {[%emt 0:0:0]} Nbd7 {[%emt 0:0:3]
} 15. c5 {[%emt 0:0:1]} Bc6 {[%emt 0:0:13]} 16. Bc2 {[%emt 0:0:0]} Qc7 {[%emt 0:0:48]} 17. Ba4 {[%emt 0:0:10]} Bd5 {[%emt 0:0:20]} 18. Nd2 {[%emt 0:0:42]} e5 {[%emt 0:0:21]} 19. Qc2 {[%emt 0:1:9]} exd4 {[%emt 0:0:17]
} 20. Bxd4 {[%emt 0:0:23]} Rfc8 {[%emt 0:0:48]} 21. Rfc1 {[%emt 0:0:18]
} Bc6 {[%emt 0:0:1]} 22. Bxc6 {[%emt 0:0:47]} Qxc6 {[%emt 0:0:0]} 23. Qa4 {[%emt 0:0:3]} Qxa4 24. Rxa4 Nb6 {[%emt 0:3:25]} 25. Raa1 {[%emt 0:0:19]
} Nbd5 {[%emt 0:0:2]} 26. Ra4 {[%emt 0:2:59]} Nb6 {[%emt 0:0:0]} 27. Raa1 {[%emt 0:0:1]} Nbd5 {[%emt 0:0:7]} 28. Ra4 {[%emt 0:0:38]} Nb6 {[%emt 0:2:28]} 29. Raa1 {[%emt 0:0:4]} Nbd5 1/2-1/2

[Event "FIDE World Rapid-ch Open 2018"]
[White "Danielyan, Vahe"]
[Black "Kabanov, Nikolai"]
[Site "St. Petersburg"]
[Round "9.97"]
[Annotator "ChessBase"]
[Result "0-1"]
[Date "2018.12.27"]
[WhiteElo "2220"]
[BlackElo "2450"]
[PlyCount "58"]
[TimeControl "900+10"]

1. e4 {[%emt 0:0:0]} e5 {[%emt 0:0:0]} 2. Nf3 {[%emt 0:0:0]} d6 {[%emt 0:0:0]} 3. d4 {[%emt 0:0:0]} exd4 {[%emt 0:0:0]} 4. Qxd4 {[%emt 0:0:7]} Nc6 {[%emt 0:0:8]} 5. Bb5 {[%emt 0:0:2]} Bd7 {[%emt 0:0:3]} 6. Bxc6 {[%emt 0:0:2]
} Bxc6 {[%emt 0:1:2]} 7. Nc3 {[%emt 0:0:3]} Nf6 {[%emt 0:0:0]} 8. Bg5 {[%emt 0:0:3]} Be7 {[%emt 0:0:3]} 9. 0-0-0 {[%emt 0:0:13]} 0-0 {[%emt 0:0:18]} 10. Rhe1 {[%emt 0:0:13]} Re8 {[%emt 0:0:23]} 11. e5 {[%emt 0:0:22]
} dxe5 {[%emt 0:0:20]} 12. Qc4 {[%emt 0:0:32]} Nd7 {[%emt 0:0:0]} 13. h4 {[%emt 0:2:51]} Bxf3 {[%emt 0:5:35]} 14. gxf3 {[%emt 0:0:7]} Bxg5+ {[%emt 0:0:4]} 15. hxg5 {[%emt 0:0:1]} Qxg5+ {[%emt 0:0:8]} 16. Kb1 {[%emt 0:0:5]} Nb6 {[%emt 0:0:11]} 17. Qxc7 {[%emt 0:1:0]} Rac8 {[%emt 0:0:0]} 18. Qxb7 {[%emt 0:0:26]} Nc4 {[%emt 0:0:16]} 19. Ne4 {[%emt 0:0:27]} Qf4 {[%emt 0:0:32]} 20. Qd5 {[%emt 0:1:7]} Qxf3 {[%emt 0:0:57]} 21. Rd3 {[%emt 0:0:48]
} Qf5 {[%emt 0:0:16]} 22. Red1 {[%emt 0:0:31]} h6 {[%emt 0:0:0]} 23. f3 {[%emt 0:3:34]} Qe6 {[%emt 0:0:24]} 24. Qxe6 {[%emt 0:1:33]} Rxe6 {[%emt 0:0:3]} 25. Rd8+ {[%emt 0:0:15]} Rxd8 {[%emt 0:0:13]} 26. Rxd8+ {[%emt 0:0:1]} Kh7 {[%emt 0:0:1]} 27. b3 {[%emt 0:0:1]} f5 {[%emt 0:0:0]} 28. Nc5 {[%emt 0:0:6]} Rd6 {[%emt 0:0:10]} 29. Re8 {[%emt 0:0:19]} Rd1# {[%emt 0:0:5]} 0-1

[Event "FIDE World Rapid-ch Open 2018"]
[White "Shubin, Kirill"]
[Black "Tsoi, Dmitry"]
[Site "St. Petersburg"]
[Round "9.98"]
[Annotator "NA"]
[Result "1/2-1/2"]
[Date "2018.12.27"]
[WhiteElo "2334"]
[BlackElo "2424"]
[PlyCount "116"]
[TimeControl "900+10"]

1. e4 {[%emt 0:0:0]} e5 {[%emt 0:0:0]} 2. Nf3 {[%emt 0:0:0]} d6 {[%emt 0:0:0]} 3. d4 {[%emt 0:0:18]} exd4 {[%emt 0:0:0]} 4. Nxd4 {[%emt 0:0:15]} Nf6 {[%emt 0:0:0]} 5. Nc3 {[%emt 0:0:6]} Be7 {[%emt 0:0:0]} 6. Be2 {[%emt 0:0:11]
} 0-0 {[%emt 0:0:1]} 7. 0-0 {[%emt 0:0:4]} Re8 {[%emt 0:0:0]} 8. Re1 {[%emt 0:0:39]} Bf8 {[%emt 0:0:13]} 9. Bc4 {[%emt 0:0:43]} Nc6 {[%emt 0:0:15]
} 10. Nxc6 {[%emt 0:0:21]} bxc6 {[%emt 0:0:2]} 11. Bg5 {[%emt 0:0:7]
} h6 {[%emt 0:0:8]} 12. Bh4 {[%emt 0:0:19]} Be7 {[%emt 0:0:0]} 13. e5 {[%emt 0:1:50]} dxe5 {[%emt 0:1:0]} 14. Rxe5 {[%emt 0:0:16]} Qd6 {[%emt 0:1:24]} 15. Bg3 {[%emt 0:0:33]} Bg4 {[%emt 0:1:50]} 16. Qd3 {[%emt 0:3:29]
} Qxd3 {[%emt 0:2:20]} 17. Bxd3 {[%emt 0:0:17]} Bd6 {[%emt 0:0:0]} 18. Rxe8+ {[%emt 0:0:45]} Rxe8 {[%emt 0:0:8]} 19. Kf1 {[%emt 0:0:0]} Rb8 {[%emt 0:0:14]} 20. b3 {[%emt 0:0:28]} Nh5 {[%emt 0:0:9]} 21. Bxd6 {[%emt 0:0:36]} cxd6 {[%emt 0:0:2]} 22. Be2 {[%emt 0:0:2]} Nf6 {[%emt 0:0:0]} 23. Rd1 {[%emt 0:0:31]} d5 {[%emt 0:0:2]} 24. Bxg4 {[%emt 0:0:46]} Nxg4 {[%emt 0:0:3]} 25. Rd4 {[%emt 0:0:27]} f5 {[%emt 0:1:1]} 26. h3 {[%emt 0:0:27]
} Ne5 {[%emt 0:0:8]} 27. Ra4 {[%emt 0:0:27]} Rb7 {[%emt 0:0:0]} 28. f4 {[%emt 0:1:13]} Nd7 {[%emt 0:0:15]} 29. Ra6 {[%emt 0:0:36]} Rc7 {[%emt 0:0:8]} 30. Ne2 {[%emt 0:1:2]} Nc5 {[%emt 0:0:2]} 31. Ra5 {[%emt 0:0:18]
} Ne6 {[%emt 0:0:3]} 32. c4 {[%emt 0:0:44]} dxc4 {[%emt 0:0:0]} 33. bxc4 {[%emt 0:0:12]} g6 {[%emt 0:1:8]} 34. Kf2 {[%emt 0:0:49]} Kf7 {[%emt 0:0:34]} 35. g4 {[%emt 0:0:7]} fxg4 {[%emt 0:0:35]} 36. hxg4 {[%emt 0:0:1]
} Rb7 {[%emt 0:1:2]} 37. Kf3 {[%emt 0:0:56]} Rd7 {[%emt 0:0:0]} 38. Ke3 {[%emt 0:0:20]} Re7 {[%emt 0:0:1]} 39. Kf3 {[%emt 0:0:5]} Kf6 {[%emt 0:0:5]} 40. Ra6 {[%emt 0:0:13]} Rc7 {[%emt 0:0:1]} 41. Nc3 {[%emt 0:0:7]
} Kg7 {[%emt 0:1:20]} 42. Ne4 {[%emt 0:0:21]} Rf7 {[%emt 0:0:0]} 43. Ke3 {[%emt 0:0:5]} Nxf4 {[%emt 0:0:11]} 44. Rxc6 {[%emt 0:0:2]} Ng2+ {[%emt 0:0:12]} 45. Kd3 {[%emt 0:0:7]} h5 {[%emt 0:0:18]} 46. gxh5 {[%emt 0:0:12]
} gxh5 {[%emt 0:0:1]} 47. Rc5 {[%emt 0:0:25]} Nf4+ {[%emt 0:0:0]} 48. Ke3 {[%emt 0:0:5]} h4 {[%emt 0:0:7]} 49. Rg5+ {[%emt 0:0:6]} Kh6 {[%emt 0:0:1]} 50. Rg4 {[%emt 0:0:16]} Ng6 {[%emt 0:0:2]} 51. c5 {[%emt 0:0:8]
} Rc7 {[%emt 0:0:55]} 52. a4 {[%emt 0:0:14]} Rb7 {[%emt 0:0:0]} 53. Nd6 {[%emt 0:0:12]} Rb3+ {[%emt 0:0:23]} 54. Kf2 {[%emt 0:0:1]} Kh5 {[%emt 0:0:4]} 55. Rc4 {[%emt 0:0:15]} Ne5 {[%emt 0:0:3]} 56. Rd4 {[%emt 0:0:13]
} Ng4+ {[%emt 0:0:15]} 57. Kg1 {[%emt 0:0:11]} h3 {[%emt 0:0:0]} 58. Rd5+ {[%emt 0:0:5]} Kg6 {[%emt 0:0:2]} 1/2-1/2

[Event "FIDE World Rapid-ch Open 2018"]
[White "Al Thebaiti, Ahmed M"]
[Black "Masrahi, Abdulrahman A"]
[Site "St. Petersburg"]
[Round "9.99"]
[Annotator "NA"]
[Result "1-0"]
[Date "2018.12.27"]
[WhiteElo "1976"]
[BlackElo "1903"]
[PlyCount "109"]
[TimeControl "900+10"]

1. Nf3 {[%emt 0:0:0]} d5 {[%emt 0:0:0]} 2. d4 {[%emt 0:0:0]} Nf6 {[%emt 0:0:0]
} 3. e3 {[%emt 0:0:5]} Bf5 {[%emt 0:0:3]} 4. b3 {[%emt 0:0:0]} e6 {[%emt 0:0:5]} 5. Bb2 {[%emt 0:0:5]} Nbd7 {[%emt 0:0:14]} 6. Be2 {[%emt 0:0:28]
} Bd6 {[%emt 0:0:6]} 7. 0-0 {[%emt 0:0:16]} Ne4 {[%emt 0:0:0]} 8. Nbd2 {[%emt 0:0:19]} Qf6 {[%emt 0:0:33]} 9. c4 {[%emt 0:0:38]} c6 {[%emt 0:0:6]
} 10. cxd5 {[%emt 0:1:43]} exd5 {[%emt 0:0:7]} 11. Nxe4 {[%emt 0:1:33]
} dxe4 {[%emt 0:3:11]} 12. Nd2 {[%emt 0:0:5]} 0-0 {[%emt 0:0:0]} 13. Nc4 {[%emt 0:0:6]} Bc7 {[%emt 0:0:8]} 14. Rc1 {[%emt 0:1:26]} Qh6 {[%emt 0:0:32]} 15. g3 {[%emt 0:0:5]} Nf6 {[%emt 0:0:44]} 16. Ne5 {[%emt 0:0:0]} Nd5 {[%emt 0:0:37]} 17. a3 {[%emt 0:2:45]} Rad8 {[%emt 0:1:50]} 18. Bg4 {[%emt 0:3:13]} Bxg4 {[%emt 0:2:23]} 19. Qxg4 {[%emt 0:0:17]} f5 {[%emt 0:0:9]
} 20. Qe2 {[%emt 0:1:13]} Qh3 {[%emt 0:1:6]} 21. Rfe1 {[%emt 0:0:11]
} Rd6 {[%emt 0:1:2]} 22. Qf1 {[%emt 0:0:3]} Qh5 {[%emt 0:0:0]} 23. Qg2 {[%emt 0:0:10]} Kh8 {[%emt 0:2:7]} 24. b4 {[%emt 0:0:54]} a6 {[%emt 0:0:10]
} 25. Kh1 {[%emt 0:0:35]} Kg8 {[%emt 0:0:36]} 26. f4 {[%emt 0:0:0]} exf3 {[%emt 0:0:26]} 27. Qxf3 {[%emt 0:0:3]} Qxf3+ {[%emt 0:0:10]} 28. Nxf3 {[%emt 0:0:2]} Re6 {[%emt 0:0:23]} 29. Ne5 {[%emt 0:0:7]} Bxe5 {[%emt 0:0:49]
} 30. dxe5 {[%emt 0:0:3]} Ne7 {[%emt 0:0:4]} 31. Rcd1 {[%emt 0:0:14]
} Ng6 {[%emt 0:0:3]} 32. Rd7 {[%emt 0:0:4]} Rf7 {[%emt 0:0:0]} 33. Rd8+ {[%emt 0:0:3]} Rf8 {[%emt 0:0:4]} 34. Rd7 {[%emt 0:0:1]} Re7 {[%emt 0:0:33]} 35. Red1 {[%emt 0:0:30]} Rfe8 {[%emt 0:0:10]} 36. e6 {[%emt 0:0:12]
} Kf8 {[%emt 0:0:9]} 37. Bd4 {[%emt 0:0:20]} Rxe6 {[%emt 0:0:0]} 38. Rxb7 {[%emt 0:0:3]} R8e7 {[%emt 0:0:3]} 39. Bc5 {[%emt 0:0:1]} Kf7 {[%emt 0:0:4]} 40. Bxe7 {[%emt 0:0:14]} Rxe7 {[%emt 0:0:3]} 41. Rdd7 {[%emt 0:0:12]
} Rxd7 {[%emt 0:0:2]} 42. Rxd7+ {[%emt 0:0:1]} Ke6 {[%emt 0:0:0]} 43. Ra7 {[%emt 0:0:13]} Ne5 {[%emt 0:0:3]} 44. Rxa6 {[%emt 0:0:2]} Kd5 {[%emt 0:0:3]} 45. Ra5+ {[%emt 0:0:7]} Ke6 {[%emt 0:0:6]} 46. Rc5 {[%emt 0:0:45]
} Kd6 {[%emt 0:0:17]} 47. a4 {[%emt 0:0:15]} g6 {[%emt 0:0:7]
} 48. a5 {[%emt 0:0:14]} Nd7 {[%emt 0:0:47]} 49. Rc4 {[%emt 0:0:8]} c5 {[%emt 0:0:11]
} 50. bxc5+ {[%emt 0:0:12]} Nxc5 {[%emt 0:0:2]} 51. Rb4 {[%emt 0:0:7]
} Kc7 {[%emt 0:0:14]} 52. Kg2 {[%emt 0:0:12]} g5 {[%emt 0:0:0]} 53. Rb5 {[%emt 0:0:20]} Kc6 {[%emt 0:0:5]} 54. Rb6+ {[%emt 0:0:9]} Kc7 {[%emt 0:0:3]} 55. Rh6 1-0

[Event "FIDE World Rapid-ch Open 2018"]
[White "Yeritsyan, Aram"]
[Black "Al Turky, Fahad A"]
[Site "St. Petersburg"]
[Round "9.100"]
[Annotator "NA"]
[Result "1-0"]
[Date "2018.12.27"]
[WhiteElo "2372"]
[BlackElo "1836"]
[PlyCount "75"]
[TimeControl "900+10"]

1. e4 {[%emt 0:0:0]} c5 {[%emt 0:3:34]} 2. Nf3 {[%emt 0:0:0]} Nc6 {[%emt 0:0:1]
} 3. d4 {[%emt 0:0:0]} cxd4 {[%emt 0:0:3]} 4. Nxd4 {[%emt 0:0:0]} e5 {[%emt 0:0:7]} 5. Nb5 {[%emt 0:0:0]} d6 {[%emt 0:0:2]} 6. N1c3 {[%emt 0:0:0]} Nf6 {[%emt 0:1:1]} 7. Bg5 {[%emt 0:0:1]} Be7 {[%emt 0:0:0]} 8. Bxf6 {[%emt 0:0:13]} gxf6 {[%emt 0:0:2]} 9. Nd5 {[%emt 0:0:5]} 0-0 {[%emt 0:2:18]} 10. Nxe7+ {[%emt 0:0:2]} Qxe7 {[%emt 0:0:2]} 11. Qxd6 {[%emt 0:0:5]
} Qxd6 {[%emt 0:0:46]} 12. Nxd6 {[%emt 0:0:1]} Nd4 {[%emt 0:0:0]} 13. 0-0-0 {[%emt 0:0:20]} Rd8 {[%emt 0:0:19]} 14. Nxc8 {[%emt 0:0:0]} Raxc8 {[%emt 0:0:0]} 15. c3 {[%emt 0:0:1]} Ne6 {[%emt 0:1:46]} 16. Rxd8+ {[%emt 0:0:19]} Rxd8 {[%emt 0:0:0]} 17. g3 {[%emt 0:0:6]} Nc5 {[%emt 0:0:14]
} 18. f3 {[%emt 0:0:3]} a6 {[%emt 0:0:19]} 19. Be2 {[%emt 0:0:0]} b5 {[%emt 0:1:29]} 20. Rd1 {[%emt 0:0:3]} Rxd1+ {[%emt 0:0:2]} 21. Kxd1 {[%emt 0:0:2]} Kf8 {[%emt 0:0:4]} 22. Kc2 {[%emt 0:0:5]} Ke7 {[%emt 0:0:31]
} 23. b4 {[%emt 0:0:1]} Ne6 {[%emt 0:0:11]} 24. a4 {[%emt 0:0:0]} Nc7 {[%emt 0:0:6]} 25. Kb3 {[%emt 0:0:33]} Kd6 {[%emt 0:0:3]} 26. c4 {[%emt 0:0:22]} Ne6 {[%emt 0:0:9]} 27. c5+ {[%emt 0:1:40]} Kc6 {[%emt 0:0:0]} 28. axb5+ {[%emt 0:0:2]} axb5 {[%emt 0:0:2]} 29. Kc3 {[%emt 0:0:0]} Nd4 {[%emt 0:0:8]} 30. Bd1 {[%emt 0:0:1]} h6 {[%emt 0:0:25]} 31. Kd3 {[%emt 0:0:7]} Ne6 {[%emt 0:0:50]} 32. Bb3 {[%emt 0:0:2]} Ng5 {[%emt 0:0:0]} 33. f4 {[%emt 0:0:2]} exf4 {[%emt 0:0:1]} 34. gxf4 {[%emt 0:0:3]} Ne6 {[%emt 0:0:3]} 35. Bxe6 {[%emt 0:0:5]} fxe6 {[%emt 0:0:1]} 36. Ke3 {[%emt 0:0:3]
} f5 {[%emt 0:1:21]} 37. exf5 {[%emt 0:0:8]} exf5 {[%emt 0:0:0]} 38. Kd4 {[%emt 0:0:1]} 1-0

[Event "FIDE World Rapid-ch Open 2018"]
[White "Ahmed Hassan Abdillahi"]
[Black "khayat, Abdullah F"]
[Site "St. Petersburg"]
[Round "9.101"]
[Annotator "NA"]
[Result "1-0"]
[Date "2018.12.27"]
[WhiteElo "1570"]
[BlackElo "1723"]
[PlyCount "85"]
[TimeControl "900+10"]

1. d4 {[%emt 0:0:40]} Nf6 {[%emt 0:0:0]} 2. c4 {[%emt 0:0:3]} d6 {[%emt 0:0:0]} 3. Nc3 {[%emt 0:0:6]} g6 {[%emt 0:0:1]} 4. e4 {[%emt 0:0:5]} Bg7 {[%emt 0:0:2]} 5. Nf3 {[%emt 0:0:6]} 0-0 {[%emt 0:0:3]} 6. Be2 {[%emt 0:0:0]} a5 {[%emt 0:0:2]} 7. 0-0 {[%emt 0:0:15]} Na6 {[%emt 0:0:3]} 8. a3 {[%emt 0:0:2]} Nd7 {[%emt 0:0:8]} 9. Be3 {[%emt 0:0:6]} e5 {[%emt 0:0:0]} 10. d5 {[%emt 0:0:12]} Ndc5 {[%emt 0:0:13]} 11. Qc2 {[%emt 0:0:10]} f5 {[%emt 0:0:5]} 12. Bg5 {[%emt 0:0:53]} Qe8 {[%emt 0:0:37]} 13. b4 {[%emt 0:0:0]} axb4 {[%emt 0:0:8]} 14. axb4 {[%emt 0:0:2]} Nxb4 {[%emt 0:0:10]} 15. Qb2 {[%emt 0:0:1]} Rxa1 {[%emt 0:0:27]} 16. Rxa1 {[%emt 0:0:1]} Nba6 {[%emt 0:0:5]
} 17. Nd2 {[%emt 0:0:52]} h6 {[%emt 0:0:18]} 18. Be3 {[%emt 0:0:0]} f4 {[%emt 0:0:44]} 19. Bxc5 {[%emt 0:0:2]} Nxc5 {[%emt 0:0:1]} 20. Nb5 {[%emt 0:0:2]} Qe7 {[%emt 0:0:28]} 21. f3 {[%emt 0:1:34]} g5 {[%emt 0:0:0]} 22. Na7 {[%emt 0:0:2]} Bd7 {[%emt 0:0:36]} 23. Nb3 {[%emt 0:0:6]} Nxb3 {[%emt 0:3:18]} 24. Qxb3 {[%emt 0:0:3]} b6 {[%emt 0:0:9]} 25. Nb5 {[%emt 0:0:7]
} Rc8 {[%emt 0:0:58]} 26. Ra7 {[%emt 0:0:13]} Qd8 {[%emt 0:0:0]} 27. Qa3 {[%emt 0:0:46]} Bxb5 {[%emt 0:0:11]} 28. cxb5 {[%emt 0:0:2]} h5 {[%emt 0:0:11]} 29. h3 {[%emt 0:0:5]} Bf6 {[%emt 0:0:20]} 30. Qa6 {[%emt 0:0:10]
} Kg7 {[%emt 0:0:49]} 31. Qxb6 {[%emt 0:0:5]} Kg6 {[%emt 0:0:0]} 32. Qc6 {[%emt 0:0:4]} Be7 {[%emt 0:1:10]} 33. Qb7 {[%emt 0:0:5]} Kf6 {[%emt 0:0:40]} 34. Ra6 {[%emt 0:0:39]} Rb8 {[%emt 0:0:40]} 35. Qc6 {[%emt 0:0:1]
} Rc8 {[%emt 0:0:24]} 36. Qc3 {[%emt 0:0:6]} h4 {[%emt 0:0:0]} 37. Rc6 {[%emt 0:0:3]} Ra8 {[%emt 0:3:36]} 38. Rxc7 {[%emt 0:0:9]} Ra3 {[%emt 0:0:32]} 39. Qc6 {[%emt 0:0:16]} Qb8 {[%emt 0:0:11]} 40. Qd7 {[%emt 0:0:10]
} Qb6+ {[%emt 0:0:10]} 41. Kh2 {[%emt 0:0:8]} Ra1 {[%emt 0:0:0]} 42. Qxe7+ {[%emt 0:0:7]} Kg6 {[%emt 0:0:3]} 43. Qe6+ {[%emt 0:0:5]} 1-0